fUSD/lending_fUSD_20260116
["ID","MTS","AMOUNT","RATE_DAILY","PERIOD"]
[402135982,1768540342245,-189.83615086,0.00017598,2]
[402135983,1768540343829,-204.00360972,0.00017598,2]
[402135984,1768541106123,10989.0,0.00030137,120]
[402135985,1768541212215,4612.49147449,0.000162,5]
[402135986,1768541251125,-150.0,0.00017179,2]
[402135987,1768541251144,-95549.0400282,0.0001718,2]
[402135988,1768541251164,-1200.0,0.0001719,2]
[402135989,1768541251183,-683.29732637,0.0001728,3]
[402135990,1768541251203,-162.18,0.00017389,2]
[402135991,1768541251223,-276.29726102,0.00017496,2]
[402135992,1768541251244,-241.79449781,0.00017588,2]
[402135993,1768541251272,-500.0,0.00017597,2]
[402135994,1768541251295,-500.0,0.00017597,2]
[402135995,1768541251320,-330.00274369,0.00017597,2]
[402135996,1768541251341,-172.31778629,0.00017597,2]
[402135997,1768541251361,-165.36838706,0.00017597,2]
[402135998,1768541251381,-555.02636905,0.00017597,2]
[402135999,1768541251406,-63355.52667869,0.00017598,2]
[402136007,1768541431379,-508.0,0.00017498,2]
[402136008,1768541431438,-1562.6252,0.00017498,2]
[402136009,1768541431448,-1164.65917544,0.000175,2]
[402136010,1768541431457,-1034.6115872,0.00017544,2]
[402136011,1768541431468,-130.04758816,0.00017544,2]
[402136012,1768541431477,-1164.65917536,0.00017589,2]
[402136013,1768541431486,-300.0,0.00017596,2]
[402136014,1768541431495,-500.0,0.00017597,2]
[402136015,1768541431504,-284.75761371,0.00017597,2]
[402136016,1768541431528,-215.24238629,0.00017597,2]
[402136017,1768541431536,-238.04675902,0.00017597,2]
[402136018,1768541431579,-261.95324098,0.00017597,2]
[402136019,1768541431588,-500.0,0.00017597,2]
[402136020,1768541431597,-500.0,0.00017597,2]
[402136021,1768541431607,-200.0,0.00017597,2]
[402136022,1768541431616,-1164.65917536,0.00017633,2]
[402136023,1768541431626,-555.02636898,0.00017657,2]
[402136024,1768541431635,-1164.65917536,0.00017678,2]
[402136025,1768541431644,-500.0,0.00017697,2]
[402136026,1768541431653,-555.02636898,0.00017718,2]
[402136027,1768541431665,-1164.65917536,0.00017722,2]
[402136028,1768541431676,-1164.65917536,0.00017767,2]
[402136029,1768541431685,-166.66,0.00017772,2]
[402136030,1768541431694,-555.02636898,0.00017778,2]
[402136031,1768541431703,-10775.48199224,0.000178,2]
[402136032,1768541431714,-999.0,0.000178,2]
[402136033,1768541431727,-854.31250193,0.000178,2]
[402136035,1768541431738,-653.94812092,0.000178,2]
[402136037,1768541431749,-2092.82749218,0.000178,2]
[402136039,1768541431761,-2124.18576796,0.000178,2]
[402136041,1768541431771,-2542.81382997,0.000178,2]
[402136042,1768541437727,-1000.0,0.00017059,2]
[402136043,1768541437747,-1000.0,0.00017698,2]
[402136044,1768541437763,-2478.58728033,0.000178,2]
[402136045,1768541437855,-325.24659849,0.000178,2]
[402136046,1768541437889,-3798.27521358,0.000178,2]
[402136047,1768541437898,-1164.65917536,0.00017811,2]
[402136048,1768541437908,-555.02636898,0.00017838,2]
[402136049,1768541437917,-1164.65917536,0.00017856,2]
[402136050,1768541437927,-555.02636898,0.00017898,2]
[402136051,1768541437937,-2579.06912266,0.000179,2]
[402136052,1768541437946,-948.98708712,0.000179,2]
[402136053,1768541437956,-689.27114516,0.000179,2]
[402136054,1768541437966,-1164.65917536,0.000179,2]
[402136055,1768541437975,-555.02636898,0.00017959,2]
[402136056,1768541437985,-300.0,0.00017999,2]
[402136057,1768541437994,-666.0,0.00017999,2]
[402136058,1768541438004,-500.0,0.00017999,2]
[402136059,1768541438013,-383.1372739,0.00017999,2]
[402136060,1768541438023,-1602083.25395178,0.00018,2]
[402136061,1768541438161,-39775.24230943,0.00018,2]
[402136062,1768541438192,-11313.26447207,0.00018,2]
[402136063,1768541439735,-726.46376423,0.00018,2]
[402136064,1768541439747,-824.477443,0.00018,2]
[402136065,1768541439759,-385.87249999,0.00018,2]
[402136066,1768541439795,-947451.10833869,0.00018,2]
[402136073,1768541442453,-716.99396338,0.00018,2]
[402136074,1768541442509,-999.0,0.00018,2]
[402136075,1768541442521,-2473.07117054,0.00018,2]
[402136081,1768541445543,-4603.22127581,0.00018,2]
[402136082,1768541445603,-5124.51326538,0.00018,2]
[402136083,1768541445722,-960.35677809,0.00018,2]
[402136189,1768541532180,-300.0,0.00017497,2]
[402136190,1768541532212,-25878.0,0.00017498,2]
[402136191,1768541754984,2965.59,0.00030136,120]
[402136195,1768541910731,181.18,0.00016781,2]
[402136197,1768541966858,1500.0,0.00016751,2]
[402136204,1768542413858,500.0,0.00016695,2]
[402136205,1768542443135,-166.66,0.00017287,2]
[402136206,1768542443155,-300.0,0.00017397,2]
[402136207,1768542443176,-1200.0,0.00017397,2]
[402136208,1768542443196,-300.0,0.00017397,2]
[402136209,1768542443216,-500.0,0.00017398,2]
[402136210,1768542443236,-379.6081,0.00017398,2]
[402136211,1768542443257,-172.31778629,0.00017406,2]
[402136212,1768542443278,-229.92062889,0.0001744,2]
[402136213,1768542443300,-151.0,0.00017453,2]
[402136214,1768542443613,-151.0,0.00017453,2]
[402136215,1768542443634,-151.0,0.00017455,2]
[402136216,1768542443655,-151.0,0.00017455,2]
[402136217,1768542443675,-151.0,0.00017458,2]
[402136218,1768542443695,-151.0,0.00017458,2]
[402136219,1768542443715,-334.64,0.00017488,3]
[402136220,1768542443739,-500.0,0.00017497,2]
[402136221,1768542443763,-500.0,0.00017497,2]
[402136222,1768542443787,-500.0,0.00017497,2]
[402136223,1768542443810,-500.0,0.00017497,2]
[402136224,1768542443833,-582.72310869,0.00017497,2]
[402136225,1768542443856,-500.0,0.00017497,2]
[402136226,1768542443882,-500.0,0.00017497,2]
[402136227,1768542443909,-500.0,0.00017497,2]
[402136228,1768542443935,-500.0,0.00017497,2]
[402136229,1768542443961,-500.0,0.00017497,2]
[402136230,1768542443983,-166.164,0.00017497,2]
[402136231,1768542444003,-1675.463,0.00017497,2]
[402136232,1768542444025,-500.0,0.00017497,2]
[402136233,1768542444050,-159124.65619796,0.00017498,2]
[402136235,1768542561157,-613.09382559,0.00017406,2]
[402136236,1768542561189,-613.09382555,0.00017461,2]
[402136237,1768542561216,-509.54109476,0.00017497,2]
[402136238,1768542561239,-229.92062888,0.00017506,2]
[402136239,1768542561260,-613.09382555,0.00017516,2]
[402136240,1768542561279,-151.0,0.00017525,2]
[402136241,1768542561301,-151.0,0.00017525,2]
[402136242,1768542561321,-185.00878966,0.0001754,2]
[402136243,1768542561343,-151.0,0.00017542,2]
[402136244,1768542561366,-172.31778629,0.00017571,2]
[402136245,1768542561388,-613.09382555,0.00017571,2]
[402136246,1768542561411,-229.92062888,0.00017571,2]
[402136247,1768542561432,-500.0,0.00017597,2]
[402136248,1768542561455,-511.63328925,0.00017597,2]
[402136249,1768542561476,-613.09382555,0.00017626,2]
[402136250,1768542561496,-229.92062888,0.00017637,2]
[402136251,1768542562100,-613.09382555,0.0001768,2]
[402136252,1768542562122,-229.92062888,0.00017703,2]
[402136253,1768542562142,-185.00878966,0.0001772,2]
[402136254,1768542562162,-172.31778629,0.00017735,2]
[402136255,1768542562183,-613.09382555,0.00017735,2]
[402136256,1768542562202,-2000.0,0.00017762,2]
[402136257,1768542562223,-229.92062888,0.00017769,2]
[402136258,1768542562243,-500.0,0.00017788,2]
[402136259,1768542562265,-613.09382555,0.0001779,2]
[402136260,1768542562286,-229.92062888,0.00017834,2]
[402136261,1768542562307,-613.09382555,0.00017845,2]
[402136262,1768542562331,-166.66,0.00017858,2]
[402136263,1768542562352,-185.00878966,0.000179,2]
[402136264,1768542562377,-158.30651085,0.000179,2]
[402136265,1768542562398,-229.92062888,0.000179,2]
[402136266,1768542562422,-25000.0,0.000179,3]
[402136267,1768542562446,-172.31778629,0.000179,2]
[402136268,1768542562466,-948.98708712,0.000179,2]
[402136269,1768542562487,-613.09382555,0.000179,2]
[402136270,1768542562507,-394.35084985,0.0001799,2]
[402136271,1768542562528,-278.46764566,0.0001799,2]
[402136272,1768542562548,-200.80864955,0.0001799,2]
[402136273,1768542562568,-500.0,0.0001799,2]
[402136274,1768542562588,-500.0,0.0001799,2]
[402136275,1768542562608,-500.0,0.0001799,2]
[402136276,1768542562628,-413.84112769,0.0001799,2]
[402136277,1768542562650,-18472.40249972,0.00017991,2]
[402136278,1768542568631,1000.0,0.00030137,120]
[402136279,1768542580880,1600.0,0.00025603,120]
[402136280,1768542581195,1600.0,0.00028448,120]
[402136281,1768542584805,1822.3,0.00017,2]
[402136285,1768542631479,-994.88176241,0.00017398,2]
[402136286,1768542631490,-1505.11823759,0.00017398,2]
[402136287,1768542631500,-151.0,0.00017644,2]
[402136288,1768542631511,-151.0,0.00017644,2]
[402136289,1768542631521,-151.0,0.00017651,2]
[402136290,1768542631530,-151.0,0.00017651,2]
[402136291,1768542631540,-151.0,0.00017673,2]
[402136292,1768542631549,-151.0,0.00017673,2]
[402136293,1768542631559,-151.0,0.0001769,2]
[402136294,1768542631569,-151.0,0.0001769,2]
[402136295,1768542631578,-2286.88176241,0.000179,2]
[402136296,1768542631609,-286.98,0.000179,2]
[402136297,1768542631627,-5.20736025,0.000179,2]
[402136298,1768542631636,-632.65805808,0.000179,2]
[402136299,1768542631646,-77.74589728,0.0001799,2]
[402136300,1768542631656,-1122.25410272,0.0001799,2]
[402136301,1768542631667,-300.0,0.0001799,2]
[402136302,1768542631677,-177.74589728,0.00017991,2]
[402136303,1768542631689,-619.35433313,0.00017991,2]
[402136305,1768542632254,-832.22856812,0.00017991,2]
[402136306,1768542632265,-1293.07089697,0.00017991,2]
[402136307,1768542632276,-21340.3187074,0.00017991,2]
[402136308,1768542632287,-2830.76908413,0.00017991,2]
[402136309,1768542632297,-589.96178572,0.00017991,2]
[402136310,1768542632308,-3124.2367233,0.00017991,2]
[402136313,1768542637566,-200484.58047553,0.00017991,2]
[402136314,1768542637575,-1927.66318088,0.00017999,5]
[402136315,1768542637585,-300.0,0.00017999,2]
[402136316,1768542637594,-300.0,0.00017999,2]
[402136317,1768542637603,-666.0,0.00017999,2]
[402136318,1768542637612,-1413428.80677081,0.00018,2]
[402136321,1768542637938,-87973.5942828,0.00018,2]
[402136322,1768542637950,-2611.3774927,0.00018,2]
[402136323,1768542637962,-252.9257169,0.00018,2]
[402136324,1768542637973,-6103.65377534,0.00018,2]
[402136325,1768542637984,-802.0,0.00018,2]
[402136326,1768542638003,-875.29292091,0.00018,2]
[402136327,1768542638015,-7116.94800026,0.00018,2]
[402136328,1768542638028,-3726.37703559,0.00018,2]
[402136329,1768542638042,-9029.21082737,0.00018,2]
[402136331,1768542638058,-4707.47864378,0.00018,2]
[402136490,1768542639692,-890.978,0.00018,2]
[402136502,1768542639803,-3756.97152716,0.00018,2]
[402136530,1768542640076,-1032.299996,0.00018,2]
[402136532,1768542640087,-723.72753373,0.00018,2]
[402136787,1768542642882,-3279.13059994,0.00018,2]
[402136789,1768542642892,-898.37969454,0.00018,2]
[402136792,1768542642907,-1846.69777687,0.00018,2]
[402136794,1768542642918,-3880.53640514,0.00018,2]
[402136797,1768542642940,-320.91486386,0.00018,2]
[402137062,1768542645578,-151.0,0.00017763,2]
[402137064,1768542645597,-151.0,0.00017763,2]
[402137066,1768542645608,-34753.14327721,0.00018,2]
[402137069,1768542645625,-578.31242378,0.00018,2]
[402137083,1768542645758,-801.50361491,0.00018,2]
[402137094,1768542645867,-244.1676397,0.00018,2]
[402137171,1768543122804,166.6,0.00019178,30]
[402137173,1768543251678,840.0,0.00030137,120]
[402137175,1768543294663,-392.59550637,0.0001705,2]
[402137176,1768543297741,-156.73524702,0.0001705,2]
[402137177,1768543299794,-169.69853594,0.0001705,2]
[402137178,1768543301922,-195.8197408,0.0001705,2]
[402137179,1768543303419,-312.1502592,0.0001705,2]
[402137180,1768543347678,155.18,8.686e-05,2]
[402137181,1768543347873,155.18,9.927e-05,2]
[402137182,1768543348070,155.18,0.00011167,2]
[402137183,1768543348275,155.18,0.00012408,2]
[402137184,1768543348482,155.18,0.00013649,2]
[402137185,1768543348671,155.18,0.0001489,2]
[402137186,1768543349755,155.18,0.00016131,2]
[402137202,1768543642083,-113.37071067,0.0001705,2]
[402137203,1768543642103,-999.0,0.00017071,3]
[402137204,1768543642125,-155.18,0.00017372,2]
[402137205,1768543642147,-348.62,0.00017372,2]
[402137206,1768543642170,-1200.0,0.00017395,2]
[402137207,1768543642191,-1749.60097642,0.00017395,2]
[402137208,1768543642214,-301.13389949,0.00017396,2]
[402137209,1768543642234,-356.0,0.00017396,2]
[402137210,1768543642255,-300.0,0.00017396,2]
[402137211,1768543642279,-564.74701208,0.00017397,2]
[402137212,1768543642299,-1927.66318088,0.00017397,5]
[402137213,1768543642318,-158.30651084,0.00017397,2]
[402137214,1768543642337,-150.0,0.00017397,2]
[402137215,1768543642362,-65563.43255601,0.00017398,2]
[402137216,1768543761389,-300.0,0.00017297,2]
[402137217,1768543761415,-170737.10151178,0.00017298,2]
[402137218,1768543767088,-1216.407066,0.00017298,2]
[402137219,1768543775319,2000.0,0.00030137,120]
[402137220,1768543779293,1674.76327282,0.00014913,2]
[402137221,1768543779795,1000.0,0.00030137,120]
[402137222,1768543780012,-351.82534366,0.00014913,2]
[402137223,1768543782059,-300.22094409,0.00014913,2]
[402137224,1768543784188,-347.95371225,0.00014913,2]
[402137225,1768543785503,1000.0,0.00030137,120]
[402137226,1768543786004,-256.4178067,0.00014913,2]
[402137227,1768543788682,-313.26281306,0.00014913,2]
[402137228,1768543791834,-514.39939241,0.00014913,2]
[402137229,1768543795694,792.26999999,0.00030137,120]
[402137230,1768543796964,-300.0,0.00014913,2]
[402137231,1768543799320,-417.52852677,0.00014913,2]
[402137232,1768543803436,-322.04109584,0.00014913,2]
[402137234,1768543831693,-194.9570924,0.00014913,2]
[402137235,1768543831702,-300.0,0.00017297,2]
[402137236,1768543831712,-9723.03142222,0.00017298,2]
[402137237,1768543831721,-1386.11,0.0001751,2]
[402137238,1768543831730,-216.13,0.00017687,2]
[402137239,1768543831744,-8011.951765,0.000177,2]
[402137240,1768543831753,-1871.62,0.00017795,2]
[402137241,1768543831762,-185.00878966,0.00017899,2]
[402137242,1768543831771,-185.00878966,0.000179,2]
[402137243,1768543831781,-25000.0,0.000179,3]
[402137244,1768543831790,-185.00878966,0.000179,2]
[402137245,1768543831798,-1719.3794151,0.000179,2]
[402137246,1768543831808,-222.38150969,0.000179,2]
[402137247,1768543831817,-48259.44726446,0.00017998,2]
[402137248,1768543831829,-1078.91753198,0.00017998,2]
[402137249,1768543831845,-911.77284541,0.00017998,2]
[402137250,1768543831856,-1837.45735707,0.00017998,2]
[402137251,1768543831868,-1462.69068328,0.00017998,2]
[402137252,1768543831876,-469.5895102,0.00017999,2]
[402137253,1768543831886,-507.02190228,0.00017999,2]
[402137254,1768543831897,-661.76687762,0.00017999,2]
[402137255,1768543831907,-487.88864122,0.00017999,2]
[402137256,1768543831938,-537.79466,0.00017999,2]
[402137257,1768543831950,-770.74619617,0.00017999,2]
[402137258,1768543831962,-102599.97067284,0.00017999,2]
[402137259,1768543831981,-53103.69173227,0.00017999,2]
[402137260,1768543831990,-586.0327187,0.00017999,2]
[402137261,1768543831999,-300.0,0.00017999,2]
[402137262,1768543832009,-30.82107508,0.00017999,2]
[402137268,1768543837776,-269.17892492,0.00017999,2]
[402137269,1768543837786,-666.0,0.00017999,2]
[402137270,1768543837795,-194.92735196,0.00017999,2]
[402137271,1768543837804,-500.0,0.00017999,2]
[402137273,1768543837813,-276.04559489,0.00017999,2]
[402137275,1768543837823,-339.68878938,0.00017999,2]
[402137277,1768543837831,-500.0,0.00017999,2]
[402137278,1768543837841,-107289.33016505,0.00018,2]
[402137280,1768543837863,-307618.58707291,0.00018,2]
[402137283,1768543837882,-3811.00920727,0.00018,2]
[402137286,1768543837900,-2499.54131949,0.00018,2]
[402137288,1768543837912,-25890.86992542,0.00018,2]
[402137290,1768543837923,-381.17507781,0.00018,2]
[402137292,1768543837934,-10869.68645824,0.00018,2]
[402137293,1768543837969,-1617665.87042722,0.00018,2]
[402137295,1768543838029,-348.01441186,0.00018,2]
[402137297,1768543838040,-12038.26415381,0.00018,2]
[402137300,1768543838052,-563.94852852,0.00018,2]
[402137488,1768543839898,-840.8243908,0.00018,2]
[402137490,1768543839909,-1662.18612278,0.00018,2]
[402137492,1768543839920,-4264.09911204,0.00018,2]
[402137522,1768543840209,-772.56517208,0.00018,2]
[402137524,1768543840220,-2060.38200223,0.00018,2]
[402137527,1768543840231,-814.99050741,0.00018,2]
[402137529,1768543840243,-136624.87950826,0.00018,2]
[402137531,1768543840254,-374.10410906,0.00018,2]
[402137533,1768543840265,-497.12974831,0.00018,2]
[402137535,1768543840277,-1069.91279836,0.00018,2]
[402137537,1768543840287,-286.94395769,0.00018,2]
[402137540,1768543840309,-394.07870975,0.00018,2]
[402137949,1768543845458,-4355.21259074,0.00018,2]
[402137950,1768543845743,-165126.31153048,0.00018,2]
[402137954,1768543845804,-613.68456428,0.00018,2]
[402137966,1768543845919,-1509.52950022,0.00018,2]
[402138023,1768543846469,-15116.75649941,0.00018,2]
[402138125,1768543980716,749868.40485101,0.000202,30]
[402138126,1768544106584,1000.0,0.0002,30]
[402138127,1768544147407,-151.0,0.00016416,2]
[402138128,1768544147431,-1000.0,0.000168,2]
[402138129,1768544147454,-1072.296,0.00016952,2]
[402138130,1768544158688,151.0,0.00016367,2]
[402138131,1768544162813,157.0,0.000168,2]
[402138132,1768544165193,390.0,0.0003,120]
[402138133,1768544166741,151.0,0.00016362,2]
[402138134,1768544176121,151.0,0.00016359,2]
[402138135,1768544183005,151.0,0.00016329,2]
[402138136,1768544191807,151.0,0.00016324,2]
[402138137,1768544199620,151.0,0.0001636,2]
[402138138,1768544208209,151.0,0.00016352,2]
[402138139,1768544232244,151.0,0.0001635,2]
[402138140,1768544288476,151.0,0.00016324,2]
[402138141,1768544392517,151.0,0.00016301,2]
[402138142,1768544401253,151.0,0.00016301,2]
[402138143,1768544418274,151.0,0.00016313,2]
[402138144,1768544425505,151.0,0.00016313,2]
[402138145,1768544441725,151.0,0.00016323,2]
[402138146,1768544450755,151.0,0.00016319,2]
[402138147,1768544458023,151.0,0.00016319,2]
[402138148,1768544474192,2188.5,0.00030137,120]
[402138149,1768544493344,857.837,0.00016952,2]
[402138150,1768544500677,289.29613673,0.00016527,2]
[402138151,1768544530819,151.0,0.00016306,2]
[402138152,1768544538763,151.0,0.00016306,2]
[402138153,1768544546971,151.0,0.00016306,2]
[402138154,1768544555155,151.0,0.00016306,2]
[402138155,1768544563579,151.0,0.00016306,2]
[402138156,1768544572206,151.0,0.00016305,2]
[402138157,1768544580423,151.0,0.00016315,2]
[402138158,1768544587762,151.0,0.00016306,2]
[402138160,1768544619851,154.88,0.00016306,2]
[402138161,1768544628888,151.0,0.00016306,2]
[402138163,1768544679756,151.0,0.00016307,2]
[402138164,1768544694845,151.0,0.00016307,2]
[402138165,1768544711646,151.0,0.00016313,2]
[402138166,1768544744444,151.0,0.00016314,2]
[402138168,1768544760456,151.0,0.00016338,2]
[402138169,1768544777831,151.0,0.00016336,2]
[402138171,1768544794003,151.0,0.00016331,2]
[402138172,1768544810233,151.0,0.00016331,2]
[402138173,1768544812112,6823.72381175,0.000162,5]
[402138174,1768544832556,191.30578952,0.0001305,2]
[402138175,1768544875743,151.0,0.00016334,2]
[402138176,1768544893316,151.0,0.00016362,2]
[402138177,1768544908982,151.0,0.00016364,2]
[402138178,1768544912997,10000.00000017,0.00016,4]
[402138179,1768544925865,151.0,0.00016378,2]
[402138180,1768544942446,151.0,0.0001637,2]
[402138181,1768544959104,151.0,0.00016368,2]
[402138182,1768544970173,-500.0,0.00017066,2]
[402138183,1768544970193,-300.0,0.00017132,2]
[402138184,1768544970213,-155.29,0.00017187,2]
[402138185,1768544970232,-300.0,0.00017197,2]
[402138186,1768544970251,-152.18662444,0.00017198,2]
[402138187,1768544970271,-157.0,0.000172,2]
[402138188,1768544970290,-166.66,0.00017229,2]
[402138189,1768544970309,-165.19,0.00017288,2]
[402138190,1768544970332,-187.6404277,0.00017297,2]
[402138191,1768544970351,-158.30651084,0.00017297,2]
[402138192,1768544970369,-225.06357612,0.00017297,2]
[402138193,1768544970388,-150.0,0.00017463,2]
[402138194,1768544970406,-1000.0,0.00017586,2]
[402138195,1768544970427,-166.66,0.00017591,2]
[402138196,1768544970447,-1000.0,0.00017593,2]
[402138197,1768544970465,-1007.0,0.000178,2]
[402138198,1768544970484,-3798.27521358,0.000178,2]
[402138199,1768544970503,-157.0,0.000179,2]
[402138200,1768544970521,-157.0,0.000179,3]
[402138201,1768544970541,-161.37,0.000179,2]
[402138202,1768544970560,-1146.2529434,0.000179,2]
[402138203,1768544970580,-583.21221262,0.000179,2]
[402138204,1768544970599,-166.66,0.00017954,2]
[402138205,1768544970619,-511.90474831,0.00017999,2]
[402138206,1768544974140,-11235.78301624,0.00017999,2]
[402138207,1768544991210,151.0,0.0001652,2]
[402138208,1768545007652,151.0,0.0001652,2]
[402138209,1768545024562,151.0,0.00016519,2]
[402138216,1768545031848,-1020.54048194,0.00017098,2]
[402138217,1768545031859,-454.19104179,0.00017098,2]
[402138218,1768545031871,-591.17478649,0.00017098,2]
[402138222,1768545032897,-4892.25406696,0.00017098,2]
[402138223,1768545032919,-4768.95087844,0.00017098,2]
[402138224,1768545033880,-500.0,0.00017098,2]
[402138225,1768545038130,-2520.23897103,0.00017098,2]
[402138226,1768545038178,-29717.17501777,0.00017098,2]
[402138228,1768545038190,-932362.43945558,0.00017098,2]
[402138231,1768545038200,-421.77203872,0.000179,2]
[402138233,1768545038210,-764.16862894,0.000179,2]
[402138235,1768545038219,-22020.79899175,0.00017999,2]
[402138237,1768545038229,-300.0,0.00017999,2]
[402138239,1768545038238,-11481.3400488,0.00017999,2]
[402138241,1768545038248,-652045.68126343,0.00018,2]
[402138404,1768545040339,-405.53040609,0.00018,2]
[402138405,1768545040443,-1090.0512326,0.00018,2]
[402138406,1768545040999,151.0,0.00016503,2]
[402138411,1768545043476,-999.0,0.00018,2]
[402138412,1768545043517,-689.84458758,0.00018,2]
[402138417,1768545052436,736.89664356,0.000179,30]
[402138418,1768545057125,151.0,0.00016524,2]
[402138420,1768545140337,-377.17567917,0.00017198,2]
[402138421,1768545142405,-167.16832833,0.00017198,2]
[402138422,1768545143888,-342.36356142,0.00017198,2]
[402138423,1768545171387,151.0,0.00016501,2]
[402138424,1768545187771,151.0,0.00016505,2]
[402138425,1768545245864,-210.78338727,0.00017198,2]
[402138426,1768545252910,151.0,0.00016524,2]
[402138427,1768545259629,-302.00335449,0.00017198,2]
[402138428,1768545269760,229.15,0.00016535,2]
[402138429,1768545270497,-181.38472114,0.00017198,2]
[402138430,1768545273749,-344.27983911,0.00017198,2]
[402138432,1768545320780,-191.0812197,0.00017112,2]
[402138433,1768545324492,-153.99351081,0.00017112,2]
[402138434,1768545349678,-204.30929403,0.00017198,2]
[402138435,1768545356753,1600.0,0.000251,120]
[402138436,1768545357032,1600.0,0.0002761,120]
[402138437,1768545357306,1600.0,0.0003012,120]
[402138438,1768545424621,-402.63264663,0.00017198,2]
[402138482,1768546049159,-193.314864,0.00017387,2]
[402138483,1768546049183,-225.0866377,0.00017475,2]
[402138484,1768546053284,-229.23551409,0.00017475,2]
[402138500,1768546168405,175.19,8.709e-05,2]
[402138501,1768546168602,175.19,9.167e-05,2]
[402138502,1768546169330,175.19,9.625e-05,2]
[402138503,1768546169399,175.19,0.00010084,2]
[402138504,1768546169566,175.19,0.00010542,2]
[402138505,1768546169637,175.19,0.00011,2]
[402138506,1768546169721,175.19,0.00011459,2]
[402138507,1768546169852,175.19,0.00011917,2]
[402138508,1768546169979,175.19,0.00012376,2]
[402138509,1768546170178,175.19,0.00012834,2]
[402138510,1768546170368,175.19,0.00013292,2]
[402138511,1768546170554,175.19,0.00013751,2]
[402138512,1768546170767,175.19,0.00014209,2]
[402138513,1768546171016,175.19,0.00014667,2]
[402138514,1768546171167,175.19,0.00015126,2]
[402138515,1768546171392,175.19,0.00015584,2]
[402138516,1768546171884,175.19,0.00016042,2]
[402138517,1768546171955,175.19,0.00016501,2]
[402138518,1768546172037,175.19,0.00016959,2]
[402138526,1768546231957,-175.19,0.00017417,2]
[402138527,1768546231967,-104.81,0.00017474,2]
[402138528,1768546232030,-195.19,0.00017474,2]
[402138529,1768546232041,-369.53626631,0.00017475,2]
[402138530,1768546232057,-1907.47582606,0.00017475,2]
[402138531,1768546232068,-3145.62502986,0.00017475,2]
[402138532,1768546232102,-9803.96001099,0.00017475,2]
[402138533,1768546232166,-10638.26179769,0.00017475,2]
[402138534,1768546232177,-3225.0474773,0.00017476,2]
[402138535,1768546232186,-594.70253017,0.00017476,2]
[402138536,1768546232198,-999.0,0.00017476,2]
[402138537,1768546232211,-434.42185821,0.00017476,2]
[402138538,1768546232231,-2382.46942602,0.00017476,2]
[402138552,1768546238036,-2829.4698836,0.00017476,2]
[402138553,1768546238046,-1007.68376918,0.000175,2]
[402138554,1768546238056,-500.0,0.00017562,2]
[402138555,1768546238066,-200.0,0.00017583,2]
[402138556,1768546238075,-11592.91157526,0.000178,2]
[402138557,1768546238087,-1889.45118596,0.000178,2]
[402138558,1768546238098,-4932.1520001,0.000178,2]
[402138559,1768546238109,-2824.62425539,0.000178,2]
[402138560,1768546238126,-21315.57298329,0.000178,2]
[402138561,1768546238137,-200.0,0.00017856,2]
[402138562,1768546238147,-264.0,0.00017899,2]
[402138563,1768546238157,-1098.9593,0.000179,2]
[402138564,1768546238167,-16663.59645593,0.000179,2]
[402138565,1768546238179,-34349.662575,0.000179,2]
[402138566,1768546238193,-1654.8,0.000179,2]
[402138567,1768546238207,-2712.56281581,0.000179,2]
[402138568,1768546238218,-506.31274187,0.000179,2]